Cogmind - Beta 17.1 @@@ ROGUE MODE // 2026.09.22 @ 15:02:45 Player: Talon Java Result: Destroyed by YE-374(R) with Subdweller Laser Performance ------------- Evolutions (0) 0 Regions Visited (3) 600 Robots Destroyed (14) 70 Value Destroyed (384) 384 Prototype IDs (2) 40 Alien Tech Used (0) 0 Bonus (0) 0 TOTAL SCORE: 1094 Bonus ------- None Cogmind --------- Core Integrity 0/250 Matter 252/300 Energy 200/200 System Corruption 4% Temperature Cool (6) Movement Treading (160) Location -10/Subcaves Parts ------- > --- POWER (1) -------- Subdweller Power Source > --- PROPULSION (2) --- Light Treads Light Treads > --- UTILITY (2) ------ Heat Sink Large Storage Unit > --- WEAPON (2) ------- EM Pulse Gun Battle Cannon > --- INVENTORY (15) --- Light Nuclear Core Wheel Flight Unit Flight Unit Flight Unit Heat Sink Medium Storage Unit Signal Interpreter Transport Network Coupler Makeshift System Shield Light Assault Rifle Subdweller Machine Gun Grenade Launcher Scrap Shield Fragment (49) Scrap Shield Fragment (39) Peak State ------------ > --- POWER ------------ Light Nuclear Core > --- PROPULSION ------- Light Treads Light Treads > --- UTILITY ---------- Heat Sink Large Storage Unit > --- WEAPON ----------- EM Pulse Gun Battle Cannon > --- INVENTORY -------- Flight Unit Flight Unit Flight Unit Flight Unit Flight Unit Heat Sink Heat Sink Medium Storage Unit Signal Interpreter Transport Network Coupler EM Pulse Gun Light Assault Rifle Grenade Launcher Datajack [Rating: 11] Favorites ----------- Power Ion Engine Engine Ion Engine Power Core Light Nuclear Core Propulsion Light Treads Treads Light Treads Leg Aluminum Leg Utility Large Storage Unit Device Heat Sink Storage Large Storage Unit Weapon Small Laser Energy Gun Small Laser Ballistic Gun Light Assault Rifle Ballistic Cannon Battle Cannon Launcher Grenade Launcher Build | -11 -10 -10 -10 ------- Run | Yrd Mat Min Sub Slots Evolved . | . . . . Power . | . . . . Propulsion . | . . . . Utility . | . . . . Weapon . | . . . . Parts Attached 15 | . 8 3 4 Power 3 | . 1 . 2 Engine 2 | . 1 . 1 Core 1 | . . . 1 Reactor . | . . . . Propulsion 3 | . 3 . . Treads 3 | . 3 . . Leg . | . . . . Wheel . | . . . . Hover . | . . . . Flight . | . . . . Utility 3 | . 3 . . Device 2 | . 2 . . Storage 1 | . 1 . . Processor . | . . . . Hackware . | . . . . Protection . | . . . . Artifact . | . . . . Weapon 6 | . 1 3 2 Energy Gun 3 | . 1 1 1 Energy Cannon . | . . . . Ballistic Gun 1 | . . 1 . Ballistic Cannon 1 | . . . 1 Launcher 1 | . . 1 . Special Weapon . | . . . . Impact Weapon . | . . . . Slashing Weapon . | . . . . Piercing Weapon . | . . . . Special Melee Weapon . | . . . . Unidentified Prototypes . | . . . . Corrupted Parts 1 | . 1 . . System Corruption 3 | . 3 . . Parts Lost 3 | . 1 2 . Power 1 | . . 1 . Propulsion 1 | . . 1 . Utility . | . . . . Weapon 1 | . 1 . . Highest Loss Streak 2 | . 1 2 . To Critical Strikes . | . . . . Average Backups 12 | . 11 15 14 Power . | . 1 1 . Propulsion 5 | . 5 6 4 Utility 4 | . 3 5 5 Weapon 1 | . . 2 3 Tool/Special . | . . . . Unused Backups 19 | . 6 . 13 Power 2 | . 2 . . Propulsion 9 | . 4 . 5 Utility 6 | . . . 6 Weapon 1 | . . . 1 Tool/Special 1 | . . . 1 Average Slot Usage (%) 99 | . 99 99 99 Engine 10 | . 14 14 1 Core 3 | . . . 12 Treads 27 | . 26 27 28 Device 12 | . 11 14 14 Storage 14 | . 15 14 14 Energy Gun 21 | . 27 14 14 Ballistic Gun 2 | . . 12 . Ballistic Cannon 2 | . . . 8 Launcher 1 | . . . 5 Peak Build Rating 11 | . 8 8 11 Average Rating 8 | . 7 7 10 On Entrance 6 | 6 6 8 6 Avg Prop Armor Cover (%) . | . . . . Naked Turns . | . . . . Heaviest Build 34 | 14 34 31 31 Greatest Support 40 | 20 40 40 40 Greatest Overweight (x) 1 | . 1 1 . Average Overweight (x) . | . . . . Largest Inventory Capacity 15 | . 15 15 15 Average Capacity 14 | . 14 15 15 Most Carried 15 | . 15 15 15 Average Carried 12 | . 11 14 14 Final Capacity 15 | 8 15 15 15 Final Carried 15 | 6 15 15 15 Class Distribution -------------------- 100% | Mutant Dominant Class ---------------- Mutant | -10/Materials Mutant | -10/Mines Mutant | -10/Subcaves Resources | -11 -10 -10 -10 ----------- Run | Yrd Mat Min Sub Matter Collected 368 | 200 89 23 56 Remotely . | . . . . Salvage Created 516 | . 466 50 . Parts 23 | . 18 5 . Haulers Intercepted 2 | . 2 . . Recyclers Shooed 1 | . 1 . . Parts Field Recycled . | . . . . Retrieved Matter . | . . . . Parts Self-Destructed . | . . . . Prevented . | . . . . Parts Restored . | . . . . Kills | -11 -10 -10 -10 ------- Run | Yrd Mat Min Sub Combat Hostiles Destroyed 10 | . 8 2 . Guns 8 | . 7 1 . AOE 2 | . 1 1 . Classes Destroyed 6 | . 3 3 . Hauler 2 | . 2 . . Recycler 1 | . . 1 . Watcher 1 | . 1 . . Swarmer 1 | . . 1 . Grunt 8 | . 8 . . Demolisher 1 | . . 1 . Best Kill Streak 3 | . 3 2 . Combat Bots Only 2 | . 2 1 . Max Kills in Single Turn 1 | . 1 1 . Gunslinging . | . . . . Exploded 1 | . 1 1 . Melee . | . . . . Uniques/NPCs Destroyed . | . . . . Combat | -11 -10 -10 -10 -------- Run | Yrd Mat Min Sub Hostile Shots Fired 89 | . 55 30 4 Missed 26 | . 14 10 2 Hits 63 | . 41 20 2 Projectile 63 | . 41 20 2 AOE 17 | . . 17 . Damage Taken 1055 | . 461 552 42 Core 256 | . 50 164 42 Absorbed by Shields . | . . . . Core Remaining (%) 100 | 100 . . . Volleys Fired 55 | . 44 5 6 Largest 2 | . 2 2 2 Hottest 90 | . 90 90 73 Shots Fired 108 | . 89 10 9 Gun 101 | . 89 10 2 Cannon 7 | . . . 7 Launcher . | . . . . Special . | . . . . Kinetic 10 | . . 3 7 Thermal 84 | . 77 7 . Explosive . | . . . . Electromagnetic 14 | . 12 . 2 Robot Hit Streak 10 | . 10 2 4 Robot Miss Streak 3 | . 3 3 . Penetration Max . | . . . . Secondary Targets 3 | . 2 1 . Max Gunslinging Chain 1 | . 1 1 . Shots Hit Robots 61 | . 54 3 4 Core Hits 24 | . 23 1 . Critical Kills . | . . . . Critical Parts Destroyed . | . . . . Critical Strikes 4 | . 3 . 1 Burn 3 | . 3 . . Blast 1 | . . . 1 Melee Attacks . | . . . . Impact . | . . . . Slashing . | . . . . Piercing . | . . . . Sneak Attacks . | . . . . Combat Hostiles . | . . . . Follow-up Attacks . | . . . . Damage Inflicted 874 | . 757 45 72 Guns 729 | . 665 41 23 Cannons 49 | . . . 49 Explosions 92 | . 92 . . Melee . | . . . . Ramming 4 | . . 4 . Kinetic 55 | . . 6 49 Thermal 674 | . 639 35 . Explosive . | . . . . Electromagnetic 141 | . 118 . 23 Impact . | . . . . Slashing . | . . . . Piercing . | . . . . Highest Corruption 4 | . 4 4 4 Average Corruption 3 | . 3 4 4 Corruption Purged . | . . . . Corruption Blocked . | . . . . Effects 21 | . 10 4 7 Message Errors 7 | . 2 3 2 Matter Fused 3 | . 1 1 1 Heat Flow Errors 2 | . 2 . . Energy Discharges 1 | . 1 . . Parts Fused 1 | . 1 . . Data Loss (minor) 4 | . 2 . 2 Data Loss (major) 1 | . . . 1 Misfires 2 | . 1 . 1 Overload Shots . | . . . . Overflow Damage . | . . . . Projectiles . | . . . . Explosions . | . . . . Melee . | . . . . Knockbacks . | . . . . Impact . | . . . . Kinetic . | . . . . Secondary . | . . . . Self-Inflicted Damage . | . . . . Shots . | . . . . Rammed . | . . . . Targets Rammed 1 | . . 1 . Kicked . | . . . . Crushed 1 | . . 1 . Highest Temperature 261 | . 261 . . Average Temperature 75 | . 75 . . Received Heat Transfer 313 | . 261 40 12 Siege Activations . | . . . . Martial Activations . | . . . . Shielding Activations . | . . . . Robots Disrupted . | . . . . Combat Hostiles . | . . . . Robots Corrupted . | . . . . Combat Hostiles . | . . . . Parts Fried . | . . . . Impact Corruptions . | . . . . Robots Melted . | . . . . Combat Hostiles . | . . . . Parts Melted 3 | . 3 . . Heat Transferred 1871 | . 1784 87 . Parts Sabotaged . | . . . . Parts Stolen . | . . . . Parts Stripped . | . . . . Power Chain Reactions 2 | . 2 . . Alert | -11 -10 -10 -10 ------- Run | Yrd Mat Min Sub Maximum Alert Level . | . . . . Low Security (%) 100 | . 100 100 . Level 1 . | . . . . Level 2 . | . . . . Level 3 . | . . . . Level 4 . | . . . . Level 5 . | . . . . High Security . | . . . . Max Security . | . . . . Peak Influence 60 | . 60 43 . Initial 3 | . . 3 . Average 17 | . 21 8 . Influence Increases 340 | . 280 60 . Destroy 0b10 Robot/C 200 | . 160 40 . Destroy 0b10 Robot/NC 20 | . 15 5 . Destroy Leader 26 | . 26 . . Successful Hack 26 | . 26 . . Select Force Hacks 30 | . 30 . . Disable Machine 15 | . 15 . . Destroy Structure 8 | . 8 . . Lose Combat Pursuer 15 | . . 15 . Influence Decreases 340 | . 270 70 . Entered New Map 7 | . . 7 . Time Decay 323 | . 260 63 . Lost Part 10 | . 10 . . Squads Dispatched 1 | . 1 . . Investigation 1 | . 1 . . Extermination . | . . . . Reinforcement . | . . . . Assault . | . . . . Garrison . | . . . . Intercept . | . . . . Searches Triggered . | . . . . Construction Impeded . | . . . . Haulers Reinforced . | . . . . Active Scanning Responses . | . . . . Cargo Convoy Interrupts . | . . . . Stealth | -11 -10 -10 -10 --------- Run | Yrd Mat Min Sub Distress Signals 1 | . 1 . . Communications Jammed . | . . . . Distress Signals . | . . . . Times Spotted 22 | . 12 9 1 Peak Tracking Total 3 | . 2 3 1 Tactical Retreats 1 | . . 1 . Traps | -11 -10 -10 -10 ------- Run | Yrd Mat Min Sub Traps Triggered 1 | . 1 . . Indirectly . | . . . . Trap Hack Attempts . | . . . . Triggered . | . . . . Disarmed . | . . . . Reprogrammed . | . . . . Reused . | . . . . Traps Extracted . | . . . . Installed . | . . . . Triggered . | . . . . Machines | -11 -10 -10 -10 ---------- Run | Yrd Mat Min Sub Machines Disabled 1 | . 1 . . Max in Single Turn 1 | . 1 . . Machines Repaired . | . . . . Machines Dismantled . | . . . . Machines Sabotaged . | . . . . Overloaded Fab Kills . | . . . . Hacking | -11 -10 -10 -10 --------- Run | Yrd Mat Min Sub Machines Accessed 4 | . 4 . . Terminals 3 | . 3 . . Fabricators . | . . . . Repair Stations . | . . . . Recycling Units 1 | . 1 . . Scanalyzers . | . . . . Garrison Access . | . . . . Total Hacks 11 | . 11 . . Successful 7 | . 7 . . Failed 3 | . 3 . . Catastrophic 1 | . 1 . . Database Lockouts 1 | . 1 . . Manual 8 | . 8 . . Terminals 10 | . 10 . . Fabricators . | . . . . Repair Stations . | . . . . Recycling Units 1 | . 1 . . Scanalyzers . | . . . . Garrison Access . | . . . . Terminal Hacks 4 | . 4 . . Part Schematic 2 | . 2 . . Prototype ID Bank 1 | . 1 . . Locate Traps 1 | . 1 . . Fabricator Hacks . | . . . . Repair Station Hacks . | . . . . Recycling Unit Hacks . | . . . . Scanalyzer . | . . . . Garrison Access Hacks . | . . . . Unauthorized Hacks 3 | . 3 . . Terminals 2 | . 2 . . Botnet 2 | . 2 . . Fabricators . | . . . . Repair Stations . | . . . . Recycling Units 1 | . 1 . . Tunnel 1 | . 1 . . Scanalyzers . | . . . . Garrison Access . | . . . . Data Cores Recovered . | . . . . Used . | . . . . Hacking Detections 2 | . 2 . . Full Trace Events . | . . . . Feedback Events . | . . . . Feedback Blocked . | . . . . Robot Schematics Acquired . | . . . . Robots Built . | . . . . Authchips . | . . . . Time . | . . . . Total Robot Build Rating . | . . . . Part Schematics Acquired 2 | . 2 . . Parts Built . | . . . . Authchips . | . . . . Time . | . . . . Total Part Build Rating . | . . . . Part Studies Acquired . | . . . . Parts Repaired . | . . . . Time . | . . . . Parts Recycled . | . . . . Recycled Matter . | . . . . Retrieved Matter . | . . . . Retrieved Components . | . . . . Parts Scanalyzed . | . . . . Part Schematics Acquired . | . . . . Parts Damaged . | . . . . Bothacking | -11 -10 -10 -10 ------------ Run | Yrd Mat Min Sub Used RIF Installer . | . . . . Robots Hacked . | . . . . Non-combat . | . . . . Combat . | . . . . Robot Hacks Applied . | . . . . Relay Couplers Released . | . . . . Fabnet Peak Effective % . | . . . . Robots Rewired . | . . . . Allies Hacked . | . . . . Hacks Repelled . | . . . . Allies | -11 -10 -10 -10 -------- Run | Yrd Mat Min Sub Total Allies . | . . . . Largest Group . | . . . . Highest-Rated Group . | . . . . Highest-Rated Ally . | . . . . Total Orders . | . . . . Ally Attacks . | . . . . Total Damage . | . . . . Kills . | . . . . Allies Corrupted . | . . . . Allies Melted . | . . . . Intel | -11 -10 -10 -10 ------- Run | Yrd Mat Min Sub Active Infowar (turns) . | . . . . Robot Analysis Total . | . . . . Derelict Logs Recovered 1 | . . . 1 Drone Launches . | . . . . Drone Recoveries . | . . . . Exploration | -11 -10 -10 -10 ------------- Run | Yrd Mat Min Sub Turns Passed 1437 | . 717 324 396 Spaces Moved 761 | 1 349 182 229 Core . | . . . . Treads 743 | . 332 182 229 Legs 18 | 1 17 . . Wheels . | . . . . Hover . | . . . . Flight . | . . . . Fastest Speed 120 | 120 120 160 160 Average Speed 159 | 120 158 162 160 Slowest Speed 240 | 120 190 240 160 Overloaded Moves . | . . . . Propulsion Burnouts . | . . . . Robots Hopped . | . . . . Potential Cave-ins . | . . . . Cave-ins Triggered . | . . . . Exploration Rate (%) 25 | 2 47 26 27 Regions Visited 3 Branch Regions 2 Pre-discovered Areas 1 | . 1 . . Known Exits Taken . | . . . . Unknown Exits Taken 3 | 1 1 1 . Scrap Searched 1 | . . 1 . Spaces Dug . | . . . . Terrain Destroyed 7 | . 7 . . Melee . | . . . . Projectile . | . . . . AOE 7 | . 7 . . Terrain Rammed . | . . . . Walls Destroyed . | . . . . Machines Disabled . | . . . . Actions | -11 -10 -10 -10 --------- Run | Yrd Mat Min Sub Total 883 | . 428 202 253 Wait 14 | . 5 9 . Move 758 | . 348 181 229 Hop . | . . . . Pick Up 22 | . 15 1 6 Fast Attach 4 | . 1 1 2 Attach 5 | . 1 1 3 Detach 1 | . . . 1 Swap 7 | . 6 1 . Drop 16 | . 8 2 6 Fire 55 | . 44 5 6 Melee . | . . . . Ram . | . . . . Kick . | . . . . Crush 1 | . . 1 . Escape Stasis . | . . . . Rewire . | . . . . Trap . | . . . . Miscellaneous . | . . . . Route ------- -11/Scrapyard -10/Materials (discovered 2 exits: [*Mat] / [*Min]) -10/Mines (discovered 3 exits: [*Mat x2] / [*Sub]) -10/Subcaves History --------- Turn | Location | Event 1 | -11/Scrapyard | Discovered new exit (range 0) 1 | -11/Scrapyard | Entered Materials 298 | -10/Materials | Central database locked down 314 | -10/Materials | Build established: Mutant 520 | -10/Materials | Discovered new exit (range 6) 649 | -10/Materials | Discovered new exit (range 10) 718 | -10/Materials | Entered Mines 719 | -10/Mines | Assembled infested the area 724 | -10/Mines | Assisted by a Guerilla fighting off Assembled 809 | -10/Mines | Discovered new exit (range 13) 844 | -10/Mines | YI-UF0 nonchalantly dropped a Grenade Launcher on the ground 930 | -10/Mines | Discovered new exit (range 3) 1027 | -10/Mines | Discovered new exit (range 9) 1030 | -10/Mines | Core integrity fell below 50% 1042 | -10/Mines | Core integrity fell below 20% 1042 | -10/Mines | Entered Subcaves 1170 | -10/Subcaves | Shifting Twisted Machinery released Battle Cannon 1204 | -10/Subcaves | Shifting Twisted Machinery released Sub. Machine Gun 1371 | -10/Subcaves | Learned 2 Materials zone layouts 1438 | -10/Subcaves | Destroyed by YE-374(R) with Subdweller Laser Last Messages --------------- Source. 01401_ Dropped EM Pulse Gun. 01403_ Acquired Mak. System Shield. 01407_ Dropped Lgt. Nuclear Core. 01407_ Acquired Sub. Power Source. 01409_ Dropped Corrupted Heat Sink. 01411_ Acquired Lgt. Nuclear Core. 01413_ Acquired 56 matter. 01414_ Subatomizers dissect the Lgt. Ion Engine. 01415_ Dropped Datajack. 01419_ Acquired Wheel. 01421_ Dropped Flight Unit. 01422_ Acquired Scrap Shield Fragment. 01424_ Subatomizers dissect the Lgt. Ion Engine, destroying it. 01425_ Acquired Scrap Shield Fragment. 01427_ System corrupted: Component data lost. 01432_ YE-374(R): "MADSUB!" 01435_ YE-374(R) Disposable Heat Sink blasted off. Map ----- +----------------------------------------------------+ | ?????????????????????????????????????????????????? | | ?????????????????????????????????????????????????? | | ?????????????????????????????????????????????????? | | ?????????????????????????????????????????????????? | | ?????????????????????????????????????????????????? | | ?????????????????????????????????????????????????? | | ?????????????????????????????????????????????????? | | ?????????????????????????????????????????????????? | | ?????????????????????????????????????????????????? | | ?????????????????????????????????????????????????? | | ?????????????????????????????????????????????????? | | ?????????????????????????????????????????????????? | | ?????????????????????????????????????????????????? | | ?????????????????????????????????????????????????? | | ?????????????????????????????????????????????????? | | ??????????????????????#??????????????????????????? | | ?????????????????????# ?????? ??????????????????? | | ##?#####????????????? ????? ?????????????????? | | ### # #???????????## ?????? ????????????????? | | #??????????## #????? ????????????????? | | # ##????????###"""#????? ?????????????????? | | #### #????????## " #????? ??????????????????? | | #### #######??# " #????? ???????????????????? | | # # #?## ""##???"""????????????????????? | | #??# ="####"#?????????????????????? | | ## # # #### !" "# @"#?????????????????????? | | ########## ## "/ =" "##????????????????????? | | ????????# # """"[ "%" #????????????????????? | | ????????## """" #### # #???????????????????? | | ????????# ## """" #??### ##???????????????????? | | ????????##### ###" #??? #????????????????????? | | ????????????###?## #?? ???????????????????? | | ?????????????????# #?? ??????????????????? | | ?????????????????# ??% #?????????????????? | | ?????????????????# ? #?????????????????? | | ??????????????????# ??#R #?????????????????? | | ???????????????????# #?? ?????????????????? | | ????????????????????###??% ????????????????? | | ????????????????????????? #### #???????????????? | | ????????????????????????? ????##?????????????????? | | ????????????????????????? ???????????????????????? | | ?????????????????????????????????????????????????? | | ?????????????????????????????????????????????????? | | ?????????????????????????????????????????????????? | | ?????????????????????????????????????????????????? | | ?????????????????????????????????????????????????? | | ?????????????????????????????????????????????????? | | ?????????????????????????????????????????????????? | | ?????????????????????????????????????????????????? | | ?????????????????????????????????????????????????? | +----------------------------------------------------+ Best States ------------- Heat Dissipation 35 Energy Generation 15 Energy Capacity 250 Matter Stores 300 Matter Capacity 300 Sight Range 16 Terrain Scan Density 10 Evasion (%) 50 Recoil Reduction 2 Item Schematics ----------------- Heat Sink | -10/Materials | Hacked Hcp. Storage Unit | -10/Materials | Hacked Robot Schematics ------------------ None Fabricated ------------ Nothing Repaired ---------- Nothing Studied --------- None Alien Tech Used ----------------- None Achievements -------------- None Challenges ------------ None Game ------ Seed RecyclingStasisLeg Manual? 0 Play Time 00:14:02 Cumulative 315.0 hours Start 2026.09.22 @ 14:51:22 End 2026.09.22 @ 15:02:45 Sessions 1 Manual Loads 0 Difficulty Rogue Special Mode None Game No. 144 Rogue 144 Adventurer 0 Explorer 0 Win Type - Total 3 Types 3/0/0/0/0/0/0/0/0/0 Lore% 58 Gallery% 61 Achievement% 50 Wizard Run 0 Options --------- Layout 2 ASCII 0 Keyboard 0 Movement Numpad Keybinds 1 Fullscreen 1 Font 32/Terminus Map View 50x44 Zoom Use 0% Tactical HUD 1 Map Filters NONE Filters NONE Steam 1 RUN: 50422a17-2368-4eff-9c78-631e7f438bb2